bitfinex/quotes_BTCUSD_20241002
["timestamp","ask_amount","ask_price","bid_price","bid_amount"]
[1727895363168,0.001636,61039.0,61038.0,0.43111871]
[1727895363434,0.003636,61039.0,61038.0,0.44311871]
[1727895363940,0.002636,61039.0,61038.0,0.26728671]
[1727895364298,0.166465,61039.0,61038.0,0.28128671]
[1727895364471,0.002636,61039.0,61038.0,0.63557644]
[1727895364728,0.24451671,61052.0,61050.0,0.1868]
[1727895365010,0.165433,61051.0,61050.0,0.18618671]
[1727895367122,0.165433,61051.0,61050.0,0.007]
[1727895367551,0.18214675,61051.0,61050.0,0.007]
[1727895368013,0.18214675,61051.0,61050.0,0.004]
[1727895368322,0.18214675,61051.0,61038.0,0.014818]
[1727895368323,0.163829,61039.0,61038.0,0.000818]
[1727895369068,0.40834571,61039.0,61038.0,0.000818]
[1727895369322,0.19716645,61039.0,61038.0,0.000818]
[1727895369795,0.27316645,61039.0,61038.0,0.000818]
[1727895370300,0.28116645,61039.0,61038.0,0.001818]
[1727895370543,0.30585326,61039.0,61038.0,0.001818]
[1727895370810,0.23085326,61039.0,61038.0,0.001818]
[1727895371074,0.23885326,61039.0,61038.0,0.002818]
[1727895371318,0.24685326,61039.0,61038.0,0.003818]
[1727895371569,0.22228167,61039.0,61038.0,0.001818]
[1727895371812,0.23903777,61039.0,61038.0,0.001818]
[1727895372081,0.20551581,61039.0,61038.0,0.001818]
[1727895372324,0.22235773,61039.0,61038.0,0.001818]
[1727895373072,0.22535773,61039.0,61038.0,0.001818]
[1727895373338,0.23108566,61039.0,61038.0,0.001818]
[1727895373573,0.23108566,61039.0,61038.0,0.002818]
[1727895373792,0.19739885,61039.0,61038.0,0.001818]
[1727895374023,0.20139885,61039.0,61038.0,0.001818]
[1727895374246,0.20139885,61039.0,61038.0,0.024818]
[1727895374492,0.18067092,61039.0,61038.0,0.18800471]
[1727895374716,0.18067092,61039.0,61038.0,0.18480518]
[1727895374942,0.18066983,61039.0,61038.0,0.18480518]
[1727895375203,0.01684083,61039.0,61038.0,0.20580518]
[1727895375511,0.163812,61046.0,61043.0,0.023]
[1727895375780,0.001636,61051.0,61045.0,0.023]
[1727895375996,0.01687969,61050.0,61047.0,0.023]
[1727895376225,0.001636,61051.0,61047.0,0.023]
[1727895376443,0.163805,61049.0,61048.0,0.05800431]
[1727895376881,0.163805,61049.0,61048.0,0.16318671]
[1727895376882,0.40832171,61049.0,61048.0,0.16318671]
[1727895377122,0.40832171,61049.0,61038.0,0.328478]
[1727895377123,0.163822,61042.0,61039.0,0.023]
[1727895377356,0.163822,61042.0,61041.0,0.023]
[1727895377585,0.18067555,61042.0,61041.0,0.20518718]
[1727895378069,0.18067706,61042.0,61041.0,0.20518718]
[1727895378296,0.164822,61042.0,61041.0,0.20518718]
[1727895378526,0.18171915,61042.0,61041.0,0.20518718]
[1727895378752,0.164822,61042.0,61041.0,0.20518718]
[1727895378986,0.001,61042.0,61041.0,0.20818718]
[1727895379215,0.001,61042.0,61041.0,0.37201118]
[1727895379758,0.24451671,61049.0,61041.0,0.20818718]
[1727895379984,0.01687115,61048.0,61045.0,0.186813]
[1727895380216,0.163806,61048.0,61047.0,0.023]
[1727895380488,0.18063268,61048.0,61047.0,0.18618671]
[1727895380777,0.18063268,61048.0,61047.0,0.20518718]
[1727895381062,0.163829,61039.0,61038.0,0.000818]
[1727895381351,0.18065568,61039.0,61038.0,0.16400471]
[1727895381590,0.1806857,61039.0,61038.0,0.000818]
[1727895381836,0.19745544,61039.0,61038.0,0.000818]
[1727895382058,0.19743997,61039.0,61038.0,0.000818]
[1727895382720,0.19843997,61039.0,61038.0,0.007818]
[1727895383355,0.19943997,61039.0,61038.0,0.020818]
[1727895383811,0.19943997,61039.0,61038.0,0.007818]
[1727895384024,0.19943997,61039.0,61038.0,0.012818]
[1727895384250,0.19843997,61039.0,61038.0,0.005818]
[1727895384472,0.19743997,61039.0,61038.0,0.005818]
[1727895384695,0.1818189,61039.0,61038.0,0.19200471]
[1727895384956,0.1818189,61039.0,61038.0,0.20620518]
[1727895384957,0.03501109,61039.0,61038.0,0.20620518]
[1727895385190,0.01702119,61039.0,61038.0,0.37003718]
[1727895385421,0.24451671,61052.0,61042.0,0.16382]
[1727895385645,0.24451671,61045.0,61043.0,0.38449065]
[1727895385868,0.24451671,61045.0,61043.0,0.22067265]
[1727895386088,0.01679626,61044.0,61043.0,0.19767265]
[1727895386304,0.163802,61049.0,61043.0,0.19767265]
[1727895386525,0.57211071,61052.0,61044.0,0.01920047]
[1727895386526,0.16381,61047.0,61044.0,0.01920047]
[1727895386745,0.163812,61046.0,61039.0,0.023]
[1727895386970,0.163812,61046.0,61040.0,0.40770342]
[1727895387206,0.001,61045.0,61043.0,0.007]
[1727895387422,0.001,61045.0,61044.0,0.01931867]
[1727895387691,0.001,61045.0,61044.0,0.02131867]
[1727895388138,0.02568008,61045.0,61044.0,0.01931867]
[1727895388355,0.02668008,61045.0,61044.0,0.01931867]
[1727895388582,0.001,61045.0,61044.0,0.01931867]
[1727895388825,0.163806,61048.0,61044.0,0.01931867]
[1727895389052,0.001,61045.0,61044.0,0.005]
[1727895389276,0.001,61045.0,61044.0,0.16818671]
[1727895389513,0.001636,61051.0,61045.0,0.023]
[1727895389705,0.001636,61051.0,61048.0,0.163803]
[1727895389944,0.001636,61051.0,61048.0,0.16318671]
[1727895390366,0.001636,61051.0,61048.0,0.32699071]
[1727895390583,0.001636,61051.0,61048.0,0.16318671]
[1727895391027,0.001636,61051.0,61048.0,0.16618671]
[1727895391256,0.001636,61051.0,61049.0,0.03529997]
[1727895392997,0.002636,61051.0,61049.0,0.20409997]
[1727895393444,0.002636,61051.0,61049.0,0.04429997]
[1727895394090,0.001636,61051.0,61049.0,0.03929997]
[1727895394340,0.001636,61051.0,61050.0,0.90091706]
[1727895394560,0.001636,61051.0,61050.0,0.65640035]
[1727895394778,0.001636,61051.0,61050.0,0.63801391]
[1727895394996,0.001636,61051.0,61050.0,0.18618671]
[1727895395443,0.001636,61051.0,61050.0,0.64096241]
[1727895395648,0.001636,61051.0,61050.0,0.63801391]
[1727895396074,0.002636,61051.0,61050.0,0.74401391]
[1727895396511,0.002636,61051.0,61050.0,0.81756416]
[1727895396722,0.003636,61051.0,61050.0,0.88782714]
[1727895396959,0.003636,61051.0,61050.0,0.83681391]
[1727895397397,0.002636,61051.0,61050.0,0.83081391]
[1727895397636,0.003636,61051.0,61050.0,0.83881391]
[1727895397882,0.003636,61051.0,61050.0,0.84081391]
[1727895398101,0.003636,61051.0,61050.0,0.83981391]
[1727895398318,0.003636,61051.0,61050.0,0.88882714]
[1727895398528,0.003636,61051.0,61050.0,0.83981391]
[1727895398948,0.002636,61051.0,61050.0,0.82581391]
[1727895399200,0.001636,61051.0,61050.0,0.81781391]
[1727895399415,0.001636,61051.0,61050.0,0.88082714]
[1727895399630,0.001636,61051.0,61050.0,0.81781391]
[1727895400068,0.001636,61051.0,61050.0,0.83181391]
[1727895400287,0.001636,61051.0,61050.0,0.81781391]
[1727895400528,0.001636,61051.0,61050.0,0.83181391]
[1727895400751,0.001636,61051.0,61050.0,0.83081391]
[1727895400975,0.002636,61051.0,61050.0,0.82181391]
[1727895401425,0.001636,61051.0,61050.0,0.80781391]
[1727895401646,0.002636,61051.0,61050.0,0.72570137]
[1727895402150,0.002636,61051.0,61050.0,0.73470137]
[1727895402151,0.001636,61051.0,61050.0,0.73470137]
[1727895402855,0.001636,61051.0,61050.0,0.74870137]
[1727895403356,0.001636,61051.0,61050.0,0.73470137]
[1727895403598,0.001636,61051.0,61050.0,0.74870137]
[1727895403850,0.001636,61051.0,61050.0,0.73470137]
[1727895404088,0.001636,61051.0,61050.0,0.72070137]
[1727895404307,0.002636,61051.0,61050.0,0.73470137]
[1727895404523,0.002636,61051.0,61050.0,0.74870137]
[1727895405204,0.001636,61051.0,61050.0,0.73470137]
[1727895405885,0.001636,61051.0,61050.0,0.74970137]
[1727895406104,0.001636,61051.0,61050.0,0.74870137]
[1727895406568,0.001636,61051.0,61050.0,0.66990137]
[1727895406788,0.001636,61051.0,61050.0,0.31418671]
[1727895407021,0.001636,61051.0,61050.0,0.19118671]
[1727895407484,0.165433,61051.0,61050.0,0.19118671]
[1727895407708,0.165433,61051.0,61050.0,0.17718671]
[1727895407951,0.002636,61051.0,61050.0,0.19118671]
[1727895408196,0.002636,61051.0,61050.0,0.22668628]
[1727895408477,0.001636,61051.0,61050.0,0.56840094]
[1727895408697,0.002636,61051.0,61050.0,0.43860094]
[1727895408935,0.002636,61051.0,61050.0,0.42460094]
[1727895409158,0.002636,61051.0,61050.0,0.60240094]
[1727895409379,0.002636,61051.0,61050.0,0.58840094]
[1727895409871,0.002636,61051.0,61050.0,0.60240094]
[1727895410093,0.001636,61051.0,61050.0,0.42760094]
[1727895410325,0.001636,61051.0,61050.0,0.44160094]
[1727895410326,0.002636,61051.0,61050.0,0.44160094]
[1727895411026,0.002636,61051.0,61050.0,0.57740094]
[1727895411027,0.001636,61051.0,61050.0,0.57740094]
[1727895411249,0.002636,61051.0,61050.0,0.59140094]
[1727895411469,0.102636,61051.0,61050.0,0.59140094]
[1727895411693,0.101636,61051.0,61050.0,0.57740094]
[1727895411912,0.102636,61051.0,61050.0,0.59140094]
[1727895413023,0.102636,61051.0,61050.0,0.21418671]
[1727895413250,0.266433,61051.0,61050.0,0.20018671]
[1727895413519,0.266433,61051.0,61050.0,0.19118671]
[1727895413767,0.265433,61051.0,61050.0,0.16318671]
[1727895413987,0.266433,61051.0,61050.0,0.20750538]
[1727895414206,0.266433,61051.0,61050.0,0.19350538]
[1727895414419,0.265433,61051.0,61050.0,0.17950538]
[1727895414907,0.102636,61051.0,61050.0,0.014]
[1727895415132,0.266433,61051.0,61050.0,0.014]
[1727895415359,0.327627,61045.0,61039.0,0.000818]
[1727895415582,0.327627,61045.0,61044.0,0.24451671]
[1727895415815,0.49144,61045.0,61044.0,0.16318671]
[1727895417097,0.59144,61045.0,61044.0,0.16318671]
[1727895417360,0.59244,61045.0,61044.0,0.16318671]
[1727895417893,0.1,61045.0,61039.0,0.000818]
[1727895418132,0.163826,61040.0,61039.0,0.000818]
[1727895418675,0.240126,61040.0,61039.0,0.000818]
[1727895419434,0.240126,61040.0,61039.0,0.010818]
[1727895419679,0.240126,61040.0,61039.0,0.000818]
[1727895419925,0.240126,61040.0,61039.0,0.007818]
[1727895420901,0.2658105,61040.0,61039.0,0.010818]
[1727895421363,0.2658105,61040.0,61039.0,0.007818]
[1727895421594,0.2658105,61040.0,61039.0,0.012818]
[1727895425520,0.240126,61040.0,61039.0,0.012818]
[1727895430563,0.163826,61040.0,61039.0,0.012818]
[1727895430788,0.02568469,61041.0,61039.0,0.17600471]
[1727895431012,0.18950869,61041.0,61040.0,0.16318671]
[1727895431236,0.163824,61041.0,61040.0,0.37445073]
[1727895431466,0.163823,61042.0,61040.0,0.08618671]
[1727895431688,0.1,61045.0,61041.0,0.163823]
[1727895431911,0.163818,61043.0,61042.0,0.16318671]
[1727895433293,0.327632,61044.0,61039.0,0.004818]
[1727895433294,0.163826,61040.0,61039.0,0.004818]
[1727895433528,0.246926,61040.0,61039.0,0.004818]
[1727895434013,0.246926,61040.0,61039.0,0.000818]
[1727895434941,0.247926,61040.0,61039.0,0.000818]
[1727895437742,0.164826,61040.0,61039.0,0.000818]
[1727895438698,0.163826,61040.0,61039.0,0.000818]
[1727895438934,0.163826,61040.0,61039.0,0.16600471]
[1727895439205,0.163826,61040.0,61039.0,0.20307108]
[1727895440116,0.163826,61040.0,61039.0,0.22407108]
[1727895440362,0.163826,61040.0,61039.0,0.22807108]
[1727895440811,0.163826,61040.0,61039.0,0.22407108]
[1727895441037,0.163825,61041.0,61039.0,0.22407108]
[1727895441259,0.163826,61040.0,61039.0,0.029818]
[1727895441970,0.163826,61040.0,61039.0,0.027818]
[1727895442418,0.163826,61040.0,61039.0,0.19100471]
[1727895442650,0.12731727,61045.0,61041.0,0.023]
[1727895442651,0.101636,61045.0,61041.0,0.023]
[1727895442877,0.101636,61045.0,61044.0,0.21506057]
[1727895443111,0.265449,61045.0,61044.0,0.37824728]
[1727895443340,0.101636,61045.0,61044.0,0.18618671]
[1727895443565,0.101636,61045.0,61044.0,0.65511347]
[1727895444706,0.101636,61045.0,61044.0,0.2204369]
[1727895445159,0.101636,61045.0,61044.0,0.21218671]
[1727895445160,0.265449,61045.0,61044.0,0.21218671]
[1727895445388,0.101636,61045.0,61044.0,0.21218671]
[1727895445609,0.101636,61045.0,61044.0,0.22618671]
[1727895445848,0.265449,61045.0,61044.0,0.22618671]
[1727895446067,0.265449,61045.0,61044.0,0.19818671]
[1727895446291,0.265449,61045.0,61044.0,0.21218671]
[1727895446736,0.265449,61045.0,61044.0,0.20018671]
[1727895447165,0.265449,61045.0,61044.0,0.21118671]
[1727895447605,0.101636,61045.0,61044.0,0.21118671]
[1727895448211,0.101636,61045.0,61044.0,0.36400271]
[1727895448401,0.101636,61045.0,61044.0,0.37500271]
[1727895449353,0.101636,61045.0,61044.0,0.36100271]
[1727895449564,0.101636,61045.0,61044.0,0.35000271]
[1727895449770,0.101636,61045.0,61044.0,0.36400271]
[1727895449968,0.101636,61045.0,61044.0,0.37600271]
[1727895450593,0.101636,61045.0,61044.0,0.36400271]
[1727895450810,0.101636,61045.0,61044.0,0.37700271]
[1727895451035,0.101636,61045.0,61044.0,0.36300271]
[1727895451241,0.101636,61045.0,61044.0,0.37700271]
[1727895451936,0.101636,61045.0,61044.0,0.36300271]
[1727895452434,0.101636,61045.0,61044.0,0.37700271]
[1727895452679,0.101636,61045.0,61044.0,0.35000271]
[1727895452916,0.101636,61045.0,61044.0,0.37800271]
[1727895453342,0.101636,61045.0,61044.0,0.36400271]
[1727895453779,0.101636,61045.0,61044.0,0.37800271]
[1727895453998,0.101636,61045.0,61044.0,0.36400271]
[1727895454215,0.101636,61045.0,61044.0,0.35000271]
[1727895454493,0.101636,61045.0,61044.0,0.37800271]
[1727895454726,0.101636,61045.0,61044.0,0.36400271]
[1727895454970,0.101636,61045.0,61044.0,0.37800271]
[1727895455935,0.101636,61045.0,61044.0,0.47800271]
[1727895456151,0.101636,61045.0,61044.0,0.56060271]
[1727895456591,0.101636,61045.0,61044.0,0.56260271]
[1727895456827,0.101636,61045.0,61044.0,0.56060271]
[1727895457080,0.101636,61045.0,61044.0,0.19118671]
[1727895457303,0.101636,61045.0,61044.0,0.35500271]
[1727895457551,0.101636,61045.0,61044.0,0.19118671]
[1727895457770,0.101636,61045.0,61044.0,0.35500271]
[1727895458871,0.101636,61045.0,61044.0,0.37800271]
[1727895459085,0.101636,61045.0,61044.0,0.21418671]
[1727895459551,0.101636,61045.0,61044.0,0.37800271]
[1727895464576,0.101636,61045.0,61044.0,0.47800271]
[1727895467645,0.101636,61045.0,61044.0,0.66999299]
[1727895467865,0.101636,61045.0,61044.0,0.56999299]
[1727895473381,0.101636,61045.0,61044.0,0.66999299]
[1727895477284,0.265449,61045.0,61044.0,0.19118671]
[1727895477781,0.362349,61045.0,61044.0,0.028]
[1727895478720,0.362349,61045.0,61044.0,0.19118671]
[1727895478721,0.198536,61045.0,61044.0,0.19118671]
[1727895478981,0.101636,61045.0,61044.0,0.38328498]
[1727895479221,0.101636,61045.0,61044.0,0.38728498]
[1727895480163,0.101636,61045.0,61044.0,0.37328498]
[1727895480415,0.101636,61045.0,61044.0,0.36928498]
[1727895480674,0.101636,61045.0,61044.0,0.37128498]
[1727895480921,0.101636,61045.0,61044.0,0.37528498]
[1727895481141,0.101636,61045.0,61044.0,0.37128498]
[1727895481373,0.101636,61045.0,61044.0,0.38528498]
[1727895481836,0.101636,61045.0,61044.0,0.38328498]
[1727895482347,0.101636,61045.0,61044.0,0.39728498]
[1727895482575,0.101636,61045.0,61044.0,0.38328498]
[1727895483024,0.101636,61045.0,61044.0,0.39728498]
[1727895483251,0.101636,61045.0,61044.0,0.38328498]
[1727895483467,0.101636,61045.0,61044.0,0.39728498]
[1727895484133,0.101636,61045.0,61044.0,0.41128498]
[1727895484810,0.101636,61045.0,61044.0,0.24746898]
[1727895485040,0.265449,61045.0,61044.0,0.22818671]
[1727895485309,0.101636,61045.0,61044.0,0.22818671]
[1727895485988,0.265449,61045.0,61044.0,0.22818671]
[1727895487093,0.265449,61045.0,61044.0,0.042]
[1727895488004,0.365449,61045.0,61044.0,0.042]
[1727895488905,0.365449,61045.0,61044.0,0.028]
[1727895489133,0.365449,61045.0,61044.0,0.035]
[1727895489603,0.365449,61045.0,61044.0,0.028]
[1727895489819,0.365449,61045.0,61044.0,0.03]
[1727895490034,0.365449,61045.0,61044.0,0.002]
[1727895490253,0.365449,61045.0,61044.0,0.007]
[1727895490510,0.365449,61045.0,61044.0,0.002]
[1727895490963,0.365449,61045.0,61044.0,0.006]
[1727895493849,0.39112982,61045.0,61044.0,0.006]
[1727895494731,0.49082982,61045.0,61044.0,0.006]
[1727895497000,0.7021071,61045.0,61040.0,0.000818]
[1727895497234,0.53581428,61041.0,61040.0,0.000818]
[1727895498620,0.343824,61041.0,61040.0,0.000818]
[1727895499295,0.346824,61041.0,61040.0,0.000818]
[1727895499720,0.352824,61041.0,61040.0,0.001818]
[1727895499950,0.346824,61041.0,61040.0,0.000818]
[1727895500171,0.350824,61041.0,61040.0,0.000818]
[1727895500391,0.54281428,61041.0,61040.0,0.000818]
[1727895500842,0.263829,61039.0,61038.0,0.000818]
[1727895501098,0.56890215,61039.0,61038.0,0.000818]
[1727895501774,0.163894,61015.0,61014.0,0.000818]
[1727895502017,0.163894,61015.0,61014.0,0.16400471]
[1727895502250,0.163894,61015.0,61014.0,0.19687728]
[1727895502919,0.164894,61015.0,61014.0,0.20987728]
[1727895503626,0.164894,61015.0,61014.0,0.013818]
[1727895504550,0.163894,61015.0,61014.0,0.014818]
[1727895504787,0.163894,61015.0,61014.0,0.016818]
[1727895505232,0.163894,61015.0,61014.0,0.014818]
[1727895505701,0.164894,61015.0,61014.0,0.021818]
[1727895506175,0.19058777,61015.0,61014.0,0.022818]
[1727895506421,0.19058777,61015.0,61014.0,0.000818]
[1727895506422,0.18958777,61015.0,61014.0,0.000818]
[1727895506883,0.18958777,61015.0,61014.0,0.003818]
[1727895507116,0.43410448,61015.0,61014.0,0.003818]
[1727895507350,0.46178777,61015.0,61014.0,0.003818]
[1727895507592,0.46178777,61015.0,61014.0,0.001818]
[1727895507823,0.163915,61007.0,61006.0,0.000818]
[1727895508063,0.52810528,61007.0,61006.0,0.000818]
[1727895508358,0.52810528,61007.0,60989.0,0.000818]
[1727895508359,0.002,61006.0,60989.0,0.000818]
[1727895508592,0.241761,60990.0,60989.0,0.000818]
[1727895509556,0.241761,60990.0,60979.0,0.00290797]
[1727895509557,0.2694,60981.0,60979.0,0.00290797]
[1727895509800,0.28065956,60980.0,60979.0,0.00290797]
[1727895510768,0.28065956,60980.0,60979.0,0.00390797]
[1727895510985,0.263988,60980.0,60979.0,0.00290797]
[1727895511208,0.28969801,60980.0,60979.0,0.00290797]
[1727895511689,0.29069801,60980.0,60979.0,0.00290797]
[1727895511922,0.19069801,60980.0,60979.0,0.00290797]
[1727895512147,0.18969801,60980.0,60979.0,0.00290797]
[1727895512374,0.19469801,60980.0,60979.0,0.00390797]
[1727895512614,0.19569801,60980.0,60979.0,0.00390797]
[1727895512835,0.19669801,60980.0,60979.0,0.00790797]
[1727895513052,0.03271001,60980.0,60979.0,0.00790797]
[1727895513275,0.19669801,60980.0,60979.0,0.00790797]
[1727895513752,0.163988,60980.0,60979.0,0.00290797]
[1727895513987,0.165988,60980.0,60979.0,0.00890797]
[1727895514213,0.165988,60980.0,60973.0,0.0001]
[1727895514214,0.26399,60979.0,60973.0,0.0001]
[1727895514447,0.264004,60974.0,60973.0,0.0001]
[1727895515620,0.264004,60974.0,60973.0,0.0011]
[1727895515841,0.164004,60974.0,60973.0,0.0011]
[1727895516063,0.18971603,60974.0,60973.0,0.0011]
[1727895516293,0.19171603,60974.0,60973.0,0.0011]
[1727895516558,0.18971603,60974.0,60973.0,0.0011]
[1727895516785,0.19171603,60974.0,60973.0,0.0011]
[1727895517482,0.19171603,60974.0,60973.0,0.0031]
[1727895517703,0.19171603,60974.0,60973.0,0.02260903]
[1727895517927,0.19471603,60974.0,60973.0,0.02260903]
[1727895518153,0.19471603,60974.0,60973.0,0.16528671]
[1727895518154,0.005,60974.0,60973.0,0.16528671]
[1727895518373,0.002,60974.0,60973.0,0.16528671]
[1727895518628,0.163994,60978.0,60973.0,0.16410571]
[1727895518860,0.27022544,60983.0,60973.0,0.000919]
[1727895518861,0.164004,60974.0,60973.0,0.000919]
[1727895519096,0.166004,60974.0,60973.0,0.000919]
[1727895519537,0.167004,60974.0,60973.0,0.002919]
[1727895520214,0.164004,60974.0,60973.0,0.000919]
[1727895520452,0.18971456,60974.0,60973.0,0.000919]
[1727895520672,0.19171456,60974.0,60973.0,0.002919]
[1727895521807,0.19171456,60974.0,60973.0,0.000919]
[1727895521808,0.18971456,60974.0,60973.0,0.000919]
[1727895522025,0.19071456,60974.0,60973.0,0.000919]
[1727895522245,0.19171456,60974.0,60973.0,0.000919]
[1727895522487,0.18971456,60974.0,60973.0,0.000919]
[1727895522706,0.19071456,60974.0,60973.0,0.000919]
[1727895523271,0.19171456,60974.0,60973.0,0.000919]
[1727895523702,0.54642636,60974.0,60973.0,0.000919]
[1727895523932,0.1,60973.0,60970.0,0.01]
[1727895524156,0.264012,60971.0,60970.0,0.01]
[1727895524381,0.41716041,60971.0,60970.0,0.01]
[1727895524624,0.41716041,60971.0,60931.0,0.006]
[1727895524625,0.005,60963.0,60931.0,0.006]
[1727895524852,0.34659,60942.0,60931.0,0.006]
[1727895525291,0.44409,60942.0,60931.0,0.006]
[1727895525512,0.73008448,60942.0,60931.0,0.006]
[1727895525987,0.74669429,60942.0,60941.0,0.0012]
[1727895526210,0.46727781,60942.0,60941.0,0.0002]
[1727895526434,0.452668,60942.0,60941.0,0.0002]
[1727895526637,0.64620948,60942.0,60941.0,0.0012]
[1727895526849,0.60748129,60942.0,60941.0,0.0002]
[1727895527301,0.60748129,60942.0,60931.0,0.006]
[1727895527302,0.164117,60932.0,60931.0,0.006]
[1727895528277,0.328209,60937.0,60931.0,0.16918671]
[1727895528278,0.164105,60937.0,60931.0,0.16918671]
[1727895528515,0.24451671,60934.0,60932.0,0.16318671]
[1727895528766,0.42260771,60942.0,60936.0,0.164105]
[1727895529040,0.40860771,60942.0,60936.0,0.32729171]
[1727895529291,0.24451671,60942.0,60937.0,0.164101]
[1727895529569,0.24451671,60942.0,60936.0,0.16318671]
[1727895529570,0.40860771,60942.0,60936.0,0.16318671]
[1727895529804,0.40860771,60942.0,60937.0,0.164103]
[1727895530051,0.40860771,60942.0,60938.0,0.16318671]
[1727895530052,0.001,60942.0,60938.0,0.16318671]
[1727895530277,0.001,60942.0,60941.0,0.164093]
[1727895530514,0.001,60942.0,60941.0,0.32727971]
[1727895530732,0.001,60942.0,60941.0,0.16318671]
[1727895530982,0.16509,60942.0,60939.0,0.01631867]
[1727895531235,0.24451671,60945.0,60934.0,0.328222]
[1727895531236,0.328171,60944.0,60936.0,0.002]
[1727895531491,0.329824,60941.0,60936.0,0.16518671]
[1727895531738,0.329824,60941.0,60936.0,0.18038728]
[1727895531739,0.164099,60939.0,60936.0,0.18038728]
[1727895531983,0.329824,60941.0,60936.0,0.18038728]
[1727895532246,0.493919,60941.0,60936.0,0.34449328]
[1727895532502,0.165733,60941.0,60937.0,0.164102]
[1727895532727,0.166731,60941.0,60937.0,0.20058784]
[1727895532955,0.001,60939.0,60937.0,0.20058784]
[1727895533428,0.001,60939.0,60938.0,0.32728771]
[1727895534225,0.002638,60941.0,60938.0,0.16318671]
[1727895534496,0.164098,60939.0,60937.0,0.002]
[1727895534989,0.002638,60941.0,60937.0,0.001]
[1727895535206,0.165099,60939.0,60938.0,0.002]
[1727895535453,0.165099,60939.0,60938.0,0.003]
[1727895536175,0.164099,60939.0,60938.0,0.001]
[1727895536415,0.002638,60941.0,60931.0,0.006819]
[1727895536416,0.164107,60936.0,60931.0,0.170938]
[1727895536653,0.164107,60936.0,60932.0,0.16318671]
[1727895536884,0.329827,60941.0,60932.0,0.16318671]
[1727895537124,0.328197,60939.0,60932.0,0.16318671]
[1727895537376,0.164107,60936.0,60932.0,0.16318671]
[1727895537862,0.164107,60936.0,60932.0,0.32730371]
[1727895538314,0.16411,60935.0,60932.0,0.16618671]
[1727895538546,0.328203,60938.0,60932.0,0.16518671]
[1727895538762,0.164107,60936.0,60933.0,0.164114]
[1727895539021,0.166107,60936.0,60933.0,0.32730071]
[1727895539494,0.001,60935.0,60933.0,0.16318671]
[1727895539723,0.001,60936.0,60935.0,0.164109]
[1727895539958,0.001,60936.0,60935.0,0.32729571]
[1727895540665,0.001638,60941.0,60935.0,0.32729571]
[1727895540666,0.001638,60941.0,60939.0,0.164097]
[1727895540927,0.001,60936.0,60933.0,0.003]
[1727895541153,0.001,60936.0,60935.0,0.164109]
[1727895541380,0.001,60936.0,60934.0,0.16318671]
[1727895541381,0.329214,60936.0,60934.0,0.16318671]
[1727895541696,0.164109,60935.0,60934.0,0.16318671]
[1727895541913,0.164109,60935.0,60931.0,0.006819]
[1727895541914,0.164117,60932.0,60931.0,0.006819]
[1727895542632,0.18080337,60932.0,60931.0,0.006819]
[1727895543089,0.60177794,60932.0,60931.0,0.006819]
[1727895543322,0.78562056,60932.0,60931.0,0.006819]
[1727895543533,0.77660768,60932.0,60931.0,0.006819]
[1727895543976,0.51397638,60932.0,60931.0,0.006819]
[1727895544230,0.59726027,60932.0,60931.0,0.006819]
[1727895544436,0.59726027,60932.0,60928.0,0.000818]
[1727895544437,0.164125,60929.0,60928.0,0.000818]
[1727895544651,0.42287232,60929.0,60928.0,0.000818]
[1727895545070,0.47614928,60929.0,60928.0,0.000818]
[1727895545289,0.338952,60919.0,60909.0,0.00012381]
[1727895545505,0.7784629,60919.0,60909.0,0.00012381]
[1727895545727,0.49904642,60919.0,60909.0,0.00012381]
[1727895546365,0.8784629,60919.0,60909.0,0.00012381]
[1727895546587,0.79675645,60919.0,60909.0,0.00012381]
[1727895546805,0.54358448,60913.0,60909.0,0.00012381]
[1727895547029,0.70448737,60913.0,60909.0,0.00012381]
[1727895547250,0.42507089,60913.0,60909.0,0.00012381]
[1727895547464,0.70448737,60913.0,60909.0,0.00012381]
[1727895547727,0.76119791,60913.0,60909.0,0.00012381]
[1727895548136,0.93238462,60913.0,60912.0,0.001819]
[1727895548354,0.76119791,60913.0,60912.0,0.000819]
[1727895548568,0.444676,60910.0,60909.0,0.00012381]
[1727895548778,0.66269373,60910.0,60909.0,0.00012381]
[1727895549003,0.264198,60902.0,60901.0,0.0002]
[1727895549229,0.70599999,60902.0,60901.0,0.0002]
[1727895549715,0.73174433,60902.0,60901.0,0.0002]
[1727895549925,0.7596289,60902.0,60901.0,0.0002]
[1727895550142,0.77649588,60902.0,60901.0,0.0002]
[1727895550345,0.77849588,60902.0,60901.0,0.0002]
[1727895551010,0.5080794,60902.0,60901.0,0.0002]
[1727895551444,0.79449588,60902.0,60901.0,0.0002]
[1727895551665,0.77649588,60902.0,60901.0,0.0002]
[1727895551879,0.78649588,60902.0,60901.0,0.0002]
[1727895552296,0.4970794,60902.0,60901.0,0.0002]
[1727895552504,0.49192283,60902.0,60901.0,0.0002]
[1727895552748,0.50875881,60902.0,60901.0,0.0002]
[1727895552950,0.33742725,60902.0,60901.0,0.0002]
[1727895553161,0.25142725,60902.0,60901.0,0.0002]
[1727895553378,0.23457816,60902.0,60901.0,0.0002]
[1727895553808,0.23457816,60902.0,60901.0,0.0324463]
[1727895553809,0.20665191,60902.0,60901.0,0.0324463]
[1727895554024,0.19565191,60902.0,60901.0,0.0324463]
[1727895554227,0.192198,60902.0,60901.0,0.0324463]
[1727895554439,0.014,60902.0,60901.0,0.0324463]
[1727895554662,0.014,60902.0,60901.0,0.21863301]
[1727895554663,0.028,60902.0,60901.0,0.21863301]
[1727895554887,0.24451671,60906.0,60901.0,0.0562653]
[1727895555095,0.164195,60903.0,60902.0,0.02144011]
[1727895555744,0.164195,60903.0,60902.0,0.27941648]
[1727895556191,0.164198,60902.0,60901.0,0.001019]
[1727895556829,0.18125124,60902.0,60901.0,0.001019]
[1727895558126,0.18725124,60902.0,60901.0,0.001019]
[1727895558336,0.174198,60902.0,60901.0,0.001019]
[1727895558557,0.19140907,60902.0,60901.0,0.001019]
[1727895558777,0.19540907,60902.0,60901.0,0.001019]
[1727895558989,0.19540697,60902.0,60901.0,0.001019]